{"text_format":"1","workbook":"xlsx","n_sheets":8,"sheets":["Лист1","Калькулятор","Паспорт споживчого кредиту","Додаток 21 \"Форма інформування\"","Продукты","Калькулятор Сайт","Лист2","Лист3"],"not_rendered":{"charts":0,"images":0,"macros":1,"external_links":0,"defined_names":2,"comments":0,"pivot_tables":0},"unopened":[],"bounds":{"document_bytes":16777216,"sheet_cells":100000,"rows_first":2000,"rows_last":500,"rows_between":2000,"halvings":0,"cell_chars":16384,"cell_head_chars":4096},"cells_cut":0,"cells_raw":0,"read":"whole","date_system":"1900"}

{"sheet":"Лист1","index":0,"n_rows":71,"n_cols":7,"rows_kept":71,"cut":false,"hidden":true,"merged":[[0,0,0,1],[1,0,1,1],[2,0,2,1],[14,0,16,5],[18,0,18,1],[18,2,18,3],[25,6,26,6],[42,2,42,6],[43,2,43,6],[29,0,29,2],[29,4,30,6],[30,0,30,2],[31,0,31,1],[24,1,26,1],[24,2,24,3],[25,2,26,2],[25,3,26,3],[25,4,26,4],[24,4,24,6],[19,0,20,1],[19,2,19,3],[20,2,20,3],[21,0,21,3],[23,0,23,5],[50,2,50,6],[52,2,52,6],[53,2,53,6],[54,2,54,6],[55,2,55,6],[51,2,51,6],[44,2,44,6],[32,0,32,1],[33,0,33,1],[35,0,35,1],[36,2,36,6],[37,2,37,6],[38,2,38,6],[39,2,39,6],[40,2,40,6],[41,2,41,6],[45,2,45,6],[46,2,46,6],[47,2,47,6],[48,2,48,6],[49,2,49,6],[57,0,57,6],[58,0,58,6],[59,0,59,6],[61,0,61,6],[56,0,56,6],[69,0,69,6],[62,0,62,1],[62,3,62,5],[70,0,70,6],[63,2,63,5],[64,0,64,6],[65,0,65,6],[66,0,66,1],[66,3,66,5],[67,2,67,5],[68,0,68,1]]}
["Публічне акціонерне товариство \"ТАСКОМБанк\"  "]
["Україна, 01032, м. Київ, вул. С. Петлюри, 30,"]
["безкоштовний телефон: 0 (800) 503 580"]
[null,"Інформація (довідка) про кредит _____________________________:"]
[null,"Розмір кредиту:"]
[null,"Вартість товару (послуги):",null,"грн."]
[null,"Сума на поточні потреби",null,"грн."]
[null,"Сума авансу:",null,"грн."]
[null,"Страховий платiж:",null,"грн."]
[null,"Пенсійний внесок:",null,"грн."]
[null,"Плата за надання кредиту:",null,"грн."]
[null,"Сума договору:",null,"грн."]
[null,"Страхова сума:",null,"грн."]
[]
["Розмір кредиту визначається, як сума вартості товару (послуги) та сума на поточні потреби (за наявності) за мінусом авансового внеску клієнта, а також за рахунок кредиту сплачується страховий платіж  та/або пенсійний внесок та/або плата за надання кредиту. Сума договору і є розміром кредиту, який надається клієнту. Страхова сума це сума, яка є базою для розрахунку страхового платежу. Страхування та сплата пенсійного внеску є окремою послугою, що може надаватись за бажанням клієнта, у тому числі за рахунок кредитних коштів."]
[]
[]
[]
["Internet-banking ТАС 24",null,"-             Сплачуйте за кредитом через Інтернет, а також"]
["https://tas24.ua",null,"-             Поповнюйте депозити"]
[null,null,"-             Здійснюйте платежі"]
["Реєстрація та надання послуг безкоштовні. Детальніше на сайті системи https://tas24.ua"]
[]
["                     Таблиця орієнтовних щомісячних платежів та подорожчання*:"]
["Строк кредиту","Щомісячний платеж, грн","Орієнтовна сукупна вартість кредиту,всього:",null,"в тому числi"]
["(місяців)",null,"у %","у грн.","Сума плати за надання кредиту, грн.","Сума плати за користування кредитом","Сума плати за обслуговування кредитної заборгованості, грн."]
[null,null,null,null,null,"(процентів), грн."]
[]
[]
["Переваги кредитування в рамках даного кредитного продукту:",null,null,null,"Вадами кредитування в рамках даного кредитного продукту є подорожчання товару/послуги"]
["·Оптимізація власного бюджету, за рахунок стабільних платежів"]
["·Моментальне отримання товару"]
["·Низька відсоткова ставка"]
["·Зменшення переплати при достроковому погашенні."]
[]
["Умови кредитування:"]
[null,"Назва кредитного продукту:"]
[null,"Валюта кредиту:","Гривня"]
[null,"Форма кредиту:","Споживчий кредит"]
[null,"Мета кредиту:","Кредит надається: \nбезготівково на оплату товарів чи послуг та оплату супутніх послуг, які пов’язані з отриманням, обслуговуванням і погашенням кредиту, \nна власні потреби готівкою або шляхом перерахування на поточний рахунок позичальника. "]
[null,"Тип процентної ставки","Фіксована/Плаваюча"]
[null,"Плата за користування кредитом (проценти):","______% річних.  \nперші «X» місяців процентна ставка встановлюється на рівні «R»% річних; починаючи з «X1»го місяця користування кредитом процентна ставка встановлюється на рівні «R1»% річних; починаючи з «X2»го місяця користування кредитом процентна ставка встановлюється на рівні «R2»% річних\" \nБанк має право змінювати процентну ставку за кредитом в разі настання події, незалежної від волі сторін Кредитного договору, яка має безпосередній вплив на вартість кредитних ресурсів Банку. В усіх інших випадках процента ставка та вартість супутніх послуг за кредитом змінюється за погодженням між сторонами Кредитного договору згідно з умовами, передбаченими у такому Кредитному договорі."]
[null,"Страховий тариф:","_______ %/ _____ грн. "]
[null,"Cтроки кредитування:","від <Computed Value> до <Computed Value> місяців"]
[null,"Cуми кредитування:","від <Computed Value> до <Computed Value> грн."]
[]
[null,"Форма забезпечення:","Застава товару/інше забезпечення (порука)/кошти на власних рахунках/без забезпечення. Оцінка заставного майна не проводиться"]
[null,"Варіанти повернення (погашення) кредиту:","від <Computed Value> до <Computed Value> місяців"]
[null,"Форма (варіанти) погашення кредиту:","Щомісячно рівними (ануїтетними) платежами.\nАнуїтетні платежі  -  регулярні рівні щомісячні платежі, що направляються на погашення кредиту, а саме основного боргу і процентів, що розраховуються таким чином, що в кінці терміну Кредитного договору за умови виконання зобов'язання Позичальником заборгованість повністю погашається.\nКількість платежів, їх частота та обсяги зазначаються у Графіку платежів згідно Кредитного договору, який в обов’язковому порядку надається для ознайомлення споживачу (позичальнику) до укладання ним Кредитного договору.    \nДаним кредитним продуктом не передбачено інших форм кредитування."]
[null,"Дострокове погашення:","Можливе часткове або повне дострокове погашення кредиту на умовах відсутності штрафних санкцій за вчинення таких дій позичальником"]
[null,"Остаточне погашення:","В кінці строку, вказаного в Кредитному договорі"]
[null,"Податковий режим сплати процентів та державні субсидії","По даному кредитному продукту податкові знижки відсутні, державні субсидії не передбачені"]
[null,"Супутні послуги:"]
[null,"Плата за обслуговування кредитної заборгованості:","_______ щомісячно від суми кредиту\nДана комісія розраховується як процент від суми кредиту, сплачується щомісячно у гривнях у складі ануїтетних платежів. Дана послуга включає в себе розрахунок та надання Позичальнику інформації про стан його заборгованості по кредиту (у вигляді sms-повідомлень, телефонного інформування), інформування про виникнення простроченої заборгованості, формування та надання виписок по рахунку, на якому обліковується кредитна заборгованість, надання консультацій щодо умов строкового та/або дострокового погашення кредитної заборгованості, у тому числі щодо умов дострокового погашення кредитної заборгованості  за декілька періодів, щодо каналів та строків погашення існуючої кредитної заборгованості, зміни умов погашення кредитної заборгованості, встановлення «кредитних канікул», відміни/перегляду розміру штрафних санкцій тощо.\n"]
[null,"Плата за надання кредиту:","___ грн./одноразова комісія, що складає <Computed Value> від суми наданого кредиту. \nДана послуга включає в себе надання послуг з підбору кредитного продукту та умов кредитування, роз’яснення умов кредитування, прийом та аналіз документів, необхідних для оформлення кредиту, консультування щодо умов, каналів, строків погашення кредитної заборгованості, можливості зміни умов погашення кредитної заборгованості тощо."]
[]
["Обов'язкові документи:"]
["1. Паспорт громадянина України"]
["2. Довідка про присвоєння ідентифікаційного номера платника податків (картка платника податків)"]
["В окремих випадках Банк залишає за собою право вимагати інші документи, необхідні для визначення платоспроможності позичальника та які є необхідними для надання споживчого кредиту. "]
[]
["З підписанням цієї Інформації (довідки) про кредит позичальник засвідчує, що перед укладанням Кредитного договору він ознайомлений з інформацією про  умови кредитування, а також повідомлений про орієнтовну сукупну вартість кредиту і ці умови є зрозумілими."]
["_________________________________",null,null,"______________________"]
[null,"Позичальник","Уповноважена особа ПАТ \"ТАСКОМБанк\""]
["Ця Інформація (довідка) про кредит у разі укладання Кредитного договору №____________________ від______________20___р.** вважається (і) його невід’ємною частиною та (іі) детальним розписом сукупної вартості кредиту з урахуванням процентної ставки за ним, вартості супутніх послуг, а також інших фінансових зобов’язань споживача у розумінні"]
["п.3.1. та 3.4. Постанови Правління Національного банку України від 10.05.07р. №168 «Про затвердження Правил надання банками України інформації споживачу про умови кредитування та сукупну вартість кредиту»."]
["_________________________________",null,null,"______________________"]
[null,"Позичальник","Уповноважена особа ПАТ \"ТАСКОМБанк\""]
["_ _ _ _ _ _ _ _ _ _ _ _ _ _ _"]
["*Таблиця орієнтованих щомісячних платежів та подорожчання відображає суму щомісячного погашення кредиту в залежності від вибраного Вами строку кредитування. Таблиця НЕ Є графіком погашення. Графік погашення та чітка сума щомісячного платежу зазначені у Кредитному договорі."]
["**У разі фактичного укладання Кредитного договору його номер та дата вписується уповноваженою особою ПАТ \"ТАСКОМБанк\", на підтвердження чого Позичальник та уповноважена особа ПАТ \"ТАСКОМБанк\" ставлять нижче свої підписи. "]

{"sheet":"Калькулятор","index":1,"n_rows":146,"n_cols":20,"rows_kept":146,"cut":false,"hidden":false,"merged":[[89,0,89,17],[20,0,24,0],[20,2,24,2],[21,4,24,4],[21,5,24,5],[21,6,21,15],[22,10,23,11],[22,6,23,9],[20,16,24,16],[20,17,24,17],[22,12,23,15],[7,8,7,9],[8,8,8,9],[19,0,19,17],[16,1,16,3],[17,1,17,3],[12,1,12,3],[20,1,24,1],[20,3,24,3],[20,4,20,15],[3,1,3,3],[7,1,7,3],[11,1,11,3],[6,1,6,3],[5,1,5,3],[4,1,4,3],[15,1,15,3],[6,8,6,13],[13,1,13,3],[14,1,14,3],[10,1,10,3],[9,1,9,4],[0,0,0,17],[13,16,13,17]]}
[]
[null,"УВАГА! Заповнюються дані в клітинках, що залиті зеленим фоном (наведені розрахунки є орієнтовними)"]
[null,"Запрошені умови:"]
[null,"Дата надання кредиту:",null,null,{"$f":"TODAY()","v":"2025-01-29"}]
[null,"Дата закінчення кредитного договору:",null,null,{"$f":"DATE(YEAR(E4),MONTH(E4)+E8,DAY(E4)-1)","v":"2030-01-28"}]
[null,"Кредитний продукт:",null,null,"КАПІ-АВТО"]
[null,"Бажана сума кредиту, грн:",null,null,50000]
[null,"Бажаний термін користування кредитом, місяців:",null,null,60]
[]
[null,"Умови кредитування та орієнтовні розрахункові параметри:"]
[null,"Загальна сума кредиту, грн:",null,null,{"$f":"E7+E14","v":51000}]
[null,"Річна процентна ставка:",null,null,0.35]
[null,"Комісія за супроводження кредиту (включається в суму кредиту):",null,null,0.02]
[null,"Комісія за супроводження кредиту (включається в суму кредиту):",null,null,{"$f":"E7*E13","v":1000}]
[null,"Орієнтовний щомісячний платіж (окрім останнього):",null,null,{"$f":"ROUNDUP(E11*((E12/360*(E5-E4)/E8)*POWER(1+(E12/360*(E5-E4)/E8),E8)/(POWER(1+(E12/360*(E5-E4)/E8),E8)-1)),0)","v":1826}]
[null,"Орієнтовна загальна вартість кредиту:",null,null,{"$f":"R88","v":111033.59224288829}]
[null,"Орієнтовні загальні витрати за кредитом:",null,null,{"$f":"E16-E11","v":60033.592242888291}]
[null,"Орієнтовна реальна річна процентна ставка:",null,null,{"$f":"Q88","v":0.43392749428749089}]
[]
["Таблиця обчислення загальної вартості кредиту для споживача та реальної річної процентної ставки за договором про споживчий кредит"]
["№ з/п","Дата видачі кредиту/дата платежу","Кількість днів у розрахунковому періоді","Чиста сума кредиту/сума платежу за розрахунковий період,грн","Види платежів за кредитом",null,null,null,null,null,null,null,null,null,null,null,"Реальна річна процентна ставка, %","Загальна вартість кредиту, грн."]
[null,null,null,null,"Сума кредиту за договором","Поценти за користування кредитом","платежі за додаткові та/або супутні послуги"]
[null,null,null,null,null,null,"банку",null,null,null,"кредитного посередника (за наявності)",null,"третіх осіб"]
[]
[null,null,null,null,null,null,"за обслуговування кредитної заборгованості","розрахунково-касове обслуговування","комісія за надання кредиту"," інші послуги банку (комісія за супроводження кредиту)","комісійний збір","інша плата за послуги кредитного посередника","послуги нотаріуса","послуги оцінювача","послуги страховика","інші послуги третіх осіб"]
[1,2,3,4,5,6,"7","8","9","10","11","12","13","14","15","16",17,18]
[0,{"$f":"E4","v":"2025-01-29"},"х",{"$f":"E7*(-1)","v":-50000},{"$f":"E11*(-1)","v":-51000},null,null,0,0,{"$f":"E14","v":1000},0,0,0,0,0,0,"х","х"]
[1,{"$f":"IF(A28=$E$8,DATE(YEAR(B27),MONTH(B27)+1,DAY(B27)-1),DATE(YEAR(B27),MONTH(B27)+1,DAY(B27)))","v":"2025-03-01"},{"$f":"B28-B27","v":31},{"$f":"IF(A28<$E$8,$E$15,E28+F28)","v":1826},{"$f":"IF(A28<$E$8,D28-F28,T28)","v":288.91666666666652},{"$f":"IF(A28<=$E$8,T28*$E$12/360*C28,0)","v":1537.0833333333335},0,0,null,0,null,null,null,null,0,null,"х","х",null,{"$f":"E11","v":51000}]
[2,{"$f":"IF(A29=$E$8,DATE(YEAR(B28),MONTH(B28)+1,DAY(B28)-1),DATE(YEAR(B28),MONTH(B28)+1,DAY(B28)))","v":"2025-04-01"},{"$f":"B29-B28","v":31},{"$f":"IF(A29<$E$8,$E$15,E29+F29)","v":1826},{"$f":"IF(A29<$E$8,D29-F29,T29)","v":297.62429398148151},{"$f":"IF(A29<=$E$8,T29*$E$12/360*C29,0)","v":1528.3757060185185},0,0,null,0,null,null,null,null,0,null,"х","х",null,{"$f":"T28-E28","v":50711.083333333336}]
[3,"2025-05-01",30,{"$f":"IF(A30<$E$8,$E$15,E30+F30)","v":1826},355.60744468557095,1470.392555314429,0,0,null,0,null,null,null,null,0,null,"х","х",null,{"$f":"T29-E29","v":50413.459039351852}]
[4,"2025-06-01",31,1826,317.31197277186334,1508.6880272281367,0,0,null,0,null,null,null,null,0,null,"х","х",null,50057.851594666281]
[5,"2025-07-01",30,1826,375.23426102807957,1450.7657389719204,0,0,null,0,null,null,null,null,0,null,"х","х",null,49740.539621894415]
[6,"2025-08-01",31,1826,338.18454676277861,1487.8154532372214,0,0,null,0,null,null,null,null,0,null,"х","х",null,49365.305360866332]
[7,"2025-09-01",31,1826,348.37705324160152,1477.6229467583985,0,0,null,0,null,null,null,null,0,null,"х","х",null,49027.120814103553]
[8,"2025-10-01",30,1826,406.20330697485997,1419.79669302514,0,0,null,0,null,null,null,null,0,null,"х","х",null,48678.743760861951]
[9,"2025-11-01",31,1826,371.11926687590289,1454.8807331240971,0,0,null,0,null,null,null,null,0,null,"х","х",null,48272.540453887093]
[10,"2025-12-01",30,1826,428.87521537884027,1397.1247846211597,0,0,null,0,null,null,null,null,0,null,"х","х",null,47901.42118701119]
[11,"2026-01-01",31,1826,395.23021168830269,1430.7697883116973,0,0,null,0,null,null,null,null,0,null,"х","х",null,47472.545971632353]
[12,"2026-02-01",31,1826,407.14201112390856,1418.8579888760914,0,0,null,0,null,null,null,null,0,null,"х","х",null,47077.315759944053]
[13,"2026-03-01",28,1826,555.53415905989596,1270.465840940104,0,0,null,0,null,null,null,null,0,null,"х","х",null,46670.173748820147]
[14,{"$f":"IF(A41=$E$8,DATE(YEAR(B40),MONTH(B40)+1,DAY(B40)-1),DATE(YEAR(B40),MONTH(B40)+1,DAY(B40)))","v":"2026-04-01"},{"$f":"B41-B40","v":31},{"$f":"IF(A41<$E$8,$E$15,E41+F41)","v":1826},{"$f":"IF(A41<$E$8,D41-F41,T41)","v":436.15600125305923},{"$f":"IF(A41<=$E$8,T41*$E$12/360*C41,0)","v":1389.8439987469408},0,0,null,0,null,null,null,null,0,null,"х","х",null,46114.639589760249]
[15,"2026-05-01",30,1826,493.71089533520717,1332.2891046647928,0,0,null,0,null,null,null,null,0,null,"х","х",null,45678.483588507188]
[16,"2026-06-01",31,1826,464.18115633078924,1361.8188436692108,0,0,null,0,null,null,null,null,0,null,"х","х",null,45184.772693171981]
[17,"2026-07-01",30,1826,521.64941350879872,1304.3505864912013,0,0,null,0,null,null,null,null,0,null,"х","х",null,44720.591536841195]
[18,"2026-08-01",31,1826,493.8929943384544,1332.1070056615456,0,0,null,0,null,null,null,null,0,null,"х","х",null,44198.942123332396]
[19,"2026-09-01",31,1826,508.77838041782184,1317.2216195821782,0,0,null,0,null,null,null,null,0,null,"х","х",null,43705.049128993938]
[20,"2026-10-01",30,1826,566.1087698331969,1259.8912301668031,0,0,null,0,null,null,null,null,0,null,"х","х",null,43196.270748576113]
[21,"2026-11-01",31,1826,541.17428480733156,1284.8257151926684,0,0,null,0,null,null,null,null,0,null,"х","х",null,42630.161978742915]
[22,"2026-12-01",30,1826,598.40452559354549,1227.5954744064545,0,0,null,0,null,null,null,null,0,null,"х","х",null,42088.987693935582]
[23,"2027-01-01",31,1826,575.51992395413617,1250.4800760458638,0,0,null,0,null,null,null,null,0,null,"х","х",null,41490.583168342033]
[24,"2027-02-01",31,1826,592.86545499553154,1233.1345450044685,0,0,null,0,null,null,null,null,0,null,"х","х",null,40915.0632443879]
[25,"2027-03-01",28,1826,728.34017128876349,1097.6598287112365,0,0,null,0,null,null,null,null,0,null,"х","х",null,40322.197789392369]
[26,"2027-04-01",31,1826,632.68512456548865,1193.3148754345114,0,0,null,0,null,null,null,null,0,null,"х","х",null,39593.857618103604]
[27,"2027-05-01",30,{"$f":"IF(A54<$E$8,$E$15,E54+F54)","v":1826},689.63246893847167,1136.3675310615283,0,0,null,0,null,null,null,null,0,null,"х","х",null,38961.172493538113]
[28,"2027-06-01",31,1826,672.53830759192738,1153.4616924080726,0,0,null,0,null,null,null,null,0,null,"х","х",null,38271.540024599642]
[29,"2027-07-01",30,1826,729.36244992060847,1096.6375500793915,0,0,null,0,null,null,null,null,0,null,"х","х",null,37599.001717007712]
[30,"2027-08-01",31,1826,714.79003875584704,1111.209961244153,0,0,null,0,null,null,null,null,0,null,"х","х",null,36869.639267087106]
[31,"2027-09-01",31,1826,736.33301631279392,1089.6669836872061,0,0,null,0,null,null,null,null,0,null,"х","х",null,36154.849228331259]
[32,"2027-10-01",30,1826,792.95994381612809,1033.0400561838719,0,0,null,0,null,null,null,null,0,null,"х","х",null,35418.516212018469]
[33,"2027-11-01",31,1826,782.42420691667962,1043.5757930833204,0,0,null,0,null,null,null,null,0,null,"х","х",null,34625.556268202337]
[34,"2027-12-01",30,1826,838.9086482125017,987.0913517874983,0,0,null,0,null,null,null,null,0,null,"х","х",null,33843.132061285658]
[35,"2028-01-01",31,1826,831.28937768932292,994.71062231067708,0,0,null,0,null,null,null,null,0,null,"х","х",null,33004.223413073159]
[36,"2028-02-01",{"$f":"B63-B62","v":31},{"$f":"IF(A63<$E$8,$E$15,E63+F63)","v":1826},{"$f":"IF(A63<$E$8,D63-F63,T63)","v":856.34351587801495},{"$f":"IF(A63<=$E$8,T63*$E$12/360*C63,0)","v":969.65648412198505},0,0,null,0,null,null,null,null,0,null,"х","х",null,32172.934035383838]
[37,"2028-03-01",29,1826,943.04612840837763,882.95387159162237,0,0,null,0,null,null,null,null,0,null,"х","х",null,31316.590519505822]
[38,"2028-04-01",31,1826,910.57512043497991,915.42487956502009,0,0,null,0,null,null,null,null,0,null,"х","х",null,30373.544391097443]
[39,"2028-05-01",30,1826,966.66339627234493,859.33660372765507,0,0,null,0,null,null,null,null,0,null,"х","х",null,29462.969270662463]
[40,"2028-06-01",31,1826,967.15300350796451,858.84699649203549,0,0,null,0,null,null,null,null,0,null,"х","х",null,28496.305874390117]
[41,"2028-07-01",30,1826,1023.0663745992706,802.9336254007294,0,0,null,0,null,null,null,null,0,null,"х","х",null,27529.152870882153]
[42,"2028-08-01",31,1826,1027.1360042092522,798.86399579074782,0,0,null,0,null,null,null,null,0,null,"х","х",null,26506.086496282882]
[43,"2028-09-01",31,1826,1058.0927421138922,767.90725788610791,0,0,null,0,null,null,null,null,0,null,"х","х",null,25478.950492073629]
[44,"2028-10-01",30,1826,1113.7249822928411,712.27501770715901,0,0,null,0,null,null,null,null,0,null,"х","х",null,24420.857749959738]
[45,"2028-11-01",31,1826,1123.5489151967063,702.45108480329384,0,0,null,0,null,null,null,null,0,null,"х","х",null,23307.132767666895]
[46,"2028-12-01",30,1826,1178.9788043029528,647.02119569704723,0,0,null,0,null,null,null,null,0,null,"х","х",null,22183.58385247019]
[47,"2029-01-01",31,1826,1192.9445422982931,633.05545770170704,0,0,null,0,null,null,null,null,0,null,"х","х",null,21004.605048167239]
[48,"2029-02-01",31,1826,1228.8985653092277,597.10143469077229,0,0,null,0,null,null,null,null,0,null,"х","х",null,19811.660505868946]
[49,"2029-03-01",28,1826,1320.1359249514298,505.8640750485701,0,0,null,0,null,null,null,null,0,null,"х","х",null,18582.761940559718]
[50,"2029-04-01",31,1826,1305.7236325851391,520.27636741486083,0,0,null,0,null,null,null,null,0,null,"х","х",null,17262.626015608286]
[51,"2029-05-01",30,1826,1360.5903471618249,465.40965283817513,0,0,null,0,null,null,null,null,0,null,"х","х",null,15956.902383023147]
[52,"2029-06-01",31,1826,1386.0833733636241,439.91662663637601,0,0,null,0,null,null,null,null,0,null,"х","х",null,14596.312035861323]
[53,"2029-07-01",30,1826,1440.7016640104839,385.29833598951615,0,0,null,0,null,null,null,null,0,null,"х","х",null,13210.228662497699]
[54,"2029-08-01",31,1826,1471.2795335178159,354.72046648218407,0,0,null,0,null,null,null,null,0,null,"х","х",null,11769.526998487214]
[55,"2029-09-01",31,1826,1515.6222639030057,310.37773609699434,0,0,null,0,null,null,null,null,0,null,"х","х",null,10298.247464969398]
[56,"2029-10-01",30,1826,1569.8400983022302,256.15990169776973,0,0,null,0,null,null,null,null,0,null,"х","х",null,8782.625201066392]
[57,"2029-11-01",31,1826,1608.6146712083578,217.38532879164211,0,0,null,0,null,null,null,null,0,null,"х","х",null,7212.7851027641618]
[58,"2029-12-01",30,1826,1662.5450290796225,163.45497092037758,0,0,null,0,null,null,null,null,0,null,"х","х",null,5604.1704315558036]
[59,"2030-01-01",31,1826,1707.2037899531485,118.79621004685156,0,0,null,0,null,null,null,null,0,null,"х","х",null,3941.6254024761811]
[60,"2030-01-31",30,2299.5922428882873,2234.4216125230323,65.170630365255107,0,0,null,0,null,null,null,null,0,null,"х","х",null,2234.4216125230323]
["Усього",null,null,null,{"$f":"SUM(E28:E87)","v":50999.999999999985},{"$f":"SUM(F28:F87)","v":59033.592242888299},{"$f":"SUM(G28:G87)","v":0},{"$f":"SUM(H27:H87)","v":0},0,1000,0,0,0,0,0,0,{"$f":"XIRR(D27:D87,B27:B87)","v":0.43392749428749089},{"$f":"SUM(E88:P88)","v":111033.59224288829}]
[]
["Примітка: \nобчислення реальної процентної ставки базується на припущенні, що:\n1) договір про споживчий кредит залишається дійсним протягом погодженого терміну кредитування та що кредитодавець і споживач виконають свої обов`язки на умовах та у строки, визначені в договорі;\n2) процентна ставка та інші платежі за послуги кредитодавця залишатимуться незмінними та застосовуватимуться протягом строку дії договору про споживчий кредит (для отримання та погашення кредиту використовуються доступні безкоштовні канали)."]
[]
[]
[]
[]
[]
[]
[]
[]
[]
[]
[]
[]
[]
[]
[]
[]
[]
[]
[]
[]
[]
[]
[]
[]
[]
[]
[]
[]
[]
[]
[]
[]
[]
[]
[]
[]
[]
[]
[]
[]
[]
[]
[]
[]
[]
[]
[]
[]
[]
[]
[null,"Термін кредитування"]
[null,12]
[null,24]
[null,36]
[null,48]
[null,60]

{"sheet":"Паспорт споживчого кредиту","index":2,"n_rows":69,"n_cols":2,"rows_kept":69,"cut":false,"hidden":false,"merged":[[0,0,0,1],[63,0,63,1],[26,0,26,1],[38,0,38,1],[39,0,39,1],[44,0,44,1],[46,0,46,1],[53,0,53,1],[11,0,11,1],[17,0,17,1],[1,0,1,1],[2,0,2,1],[3,0,3,1],[4,0,4,1],[64,0,64,1],[67,0,67,1],[68,0,68,1],[54,0,54,1],[55,0,55,1],[57,0,57,1],[58,0,58,1]]}
[]
["Паспорт споживчого кредиту по продукту «КАПІ-АВТО»"]
["Інформація, яка надається споживачу до укладення договору про споживчий кредит"]
["(Стандартизована форма)"]
["1. Інформація та контактні дані кредитодавця"]
["Найменування кредитодавця та його структурного або відокремленого підрозділу, в якому поширюється інформація","АКЦІОНЕРНЕ ТОВАРИСТВО «БАНК «УКРАЇНСЬКИЙ КАПІТАЛ»  "]
["Місцезнаходження кредитодавця та адреса структурного або відокремленого підрозділу, в якому поширюється інформація","03117, м. Київ, проспект Берестейський, буд. 67"]
["Ліцензія/Свідоцтво","Реєстраційний запис у Державному реєстрі банків № 138 дата внесення до реєстру 25.12.1992 р., запис у Державному реєстрі банків про право юридичної особи на здійснення банківської діяльності № 26"]
["Номер контактного телефону","0 800 210 804"]
["Адреса електронної пошти","office@buc.com.ua"]
["Адреса офіційного веб-сайту","www.ukrcapital.com.ua"]
["2. Інформація та контактні дані кредитного посередника"]
["Найменування кредитного посередника","Відсутній"]
["Місцезнаходження","-"]
["Номер контактного телефону","-"]
["Адреса електронної пошти","-"]
["Адреса офіційного веб-сайту","-"]
["3. Основні умови кредитування з урахуванням побажань споживача"]
["Тип кредиту","Кредит"]
["Сума / ліміт кредиту, грн.",{"$f":"Калькулятор!E11","v":51000}]
["Строк кредитування, міс.",{"$f":"Калькулятор!E8","v":60}]
["Мета отримання кредиту","На купівлю транспортного засобу та/або на інші споживчі цілі (для задоволення потреб, не пов’язаних з підприємницькою, незалежною професійною діяльністю або виконанням обов’язків найманого працівника)."]
["Спосіб та строк надання кредиту","Безготівковим шляхом на поточний рахунок позичальника з використанням електронного платіжного засобу, відкритий в АТ «БАНК «УКРАЇНСЬКИЙ КАПІТАЛ», протягом 1 (одного) банківського дня від дати підписання договору."]
["Можливі види (форми) забезпечення кредиту","Без забезпечення"]
["Необхідність проведення оцінки забезпечення кредиту","Ні"]
["Мінімальний розмір власного платежу (фінансової участі) споживача за умови отримання кредиту на придбання товару/роботи/послуги, %","Відсутній"]
["4. Інформація щодо реальної річної процентної ставки та орієнтовної загальної вартості кредиту для споживача"]
["Процентна ставка, відсотків річних",{"$f":"Калькулятор!E12","v":0.35}]
["Тип процентної ставки","Фіксована"]
["Порядок зміни змінюваної процентної ставки","-"]
["Платежі за додаткові та/або супутні послуги кредитодавця, обов’язкові для укладання договору, грн:"]
["1. Комісія за супроводження кредиту","2% (комісія за супроводження кредиту сплачується за перший місяць кредитування, розраховується від суми кредиту, яка буде надана клієнту на власні потреби, та включається в загальну суму кредиту шляхом збільшення суми кредиту на суму комісії)."]
["2. Відкриття поточного (карткового) рахунку з використанням електронного платіжного засобу для зарахування кредиту","Відкриття рахунку не тарифікується (оформлюється окремим договором за умови відсутності у споживача будь-якого діючого поточного рахунку з використанням електронного платіжного засобу в АТ «БАНК «УКРАЇНСЬКИЙ КАПІТАЛ»). В подальшому обслуговування поточного рахунку здійснюється відповідно до Тарифів Банку розміщених на офіційному веб-сайті Банку (Тарифний пакет «CAPICARD») https://ukrcapital.com.ua/uk/dokumenty/taryfni-pakety.html"]
["Застереження: витрати на такі послуги можуть змінюватися протягом строку дії договору про споживчий кредит","Платежі за послуги, пов’язані з поверненням/погашенням кредиту."]
["Платежі за послуги кредитного посередника, що підлягають сплаті споживачем, грн*","Відсутні"]
["Загальні витрати за кредитом, грн.",{"$f":"Калькулятор!E17","v":60033.592242888291}]
["Орієнтовна загальна вартість кредиту для споживача за весь строк користування кредитом (у т.ч. тіло кредиту, відсотки, комісії та інші платежі), грн.",{"$f":"Калькулятор!E16","v":111033.59224288829}]
["Реальна річна процентна ставка, відсотків річних",{"$f":"Калькулятор!E18","v":0.43392749428749089}]
["Застереження: наведені обчислення реальної річної процентної ставки та орієнтовної загальної вартості кредиту для споживача є репрезентативними та базуються на обраних споживачем умовах кредитування, викладених вище, і на припущенні, що договір про споживчий кредит залишатиметься дійсним протягом погодженого строку, а кредитодавець і споживач виконають свої обов'язки на умовах та у строки, визначені в договорі.\nРеальна річна процентна ставка обчислена на основі припущення, що процентна ставка та інші платежі за послуги кредитодавця залишатимуться незмінними та застосовуватимуться протягом строку дії договору про споживчий кредит."]
["Застереження: використання інших способів надання кредиту та/або зміна інших вищезазначених умов кредитування можуть мати наслідком застосування іншої реальної річної процентної ставки та орієнтовної загальної вартості кредиту для споживача."]
["Платежі за додаткові та/або супутні послуги третіх осіб, обов’язкові для укладення договору/отримання кредиту, грн.:"]
["1. послуги нотаріуса","Ні"]
["2. послуги оцінювача","Ні"]
["3. послуги страховика","Ні"]
["5. Порядок повернення кредиту"]
["Кількість та розмір платежів, періодичність внесення","Надається у вигляді графіку платежів, у якому визначаються кількість, розмір щомісячних  платежів та періодичність їх внесення."]
["6. Додаткова інформація"]
["Наслідки прострочення виконання та/або невиконання зобов’язань за договором про споживчий кредит:"]
["пеня","-"]
["штрафи","За порушення споживачем строків сплати платежів по поверненню кредиту та/або сплати процентів за користування кредитом та інших платежів, передбачених кредитним договором, споживач сплачує кредитодавцю штраф у розмірі 300,00 (триста) гривень за кожен такий випадок.\n\nУ випадку невиконання споживачем обов’язків щодо надання документів, в тому числі щодо доходів та місця реєстрації, кредитодавець має право нарахувати, вимагати, а споживач сплачує штраф у розмірі 500,00 грн. за кожний випадок.\n\nУ випадку нецільового використання кредитних коштів кредитодавець нараховує та вимагає, а споживач сплачує штраф у розмірі 5% від суми кредиту.\n\nСукупна сума неустойки (штраф, пеня) та інших платежів, що підлягають сплаті споживачем за порушення виконання його зобов'язань на підставі договору про споживчий кредит, не може перевищувати половини суми, одержаної споживачем за таким договором, і не може бути збільшена за домовленістю сторін."]
["процентна ставка, яка застосовується при невиконанні зобов'язання щодо повернення кредиту","-"]
["інші платежі","-"]
["Кредитодавець має право залучати до врегулювання простроченої заборгованості колекторську компанію.","Так"]
["Вимоги щодо взаємодії із споживачами при врегулюванні простроченої заборгованості (вимоги щодо етичної поведінки), встановлені статтею 25 Закону України \"Про споживче кредитування\"."]
["7. Інші важливі правові аспекти"]
["Споживач має право безкоштовно отримати копію проекту договору про споживчий кредит у письмовій чи електронній формі за своїм вибором. Це положення не застосовується у разі відмови кредитодавця від продовження процесу укладання договору зі споживачем."]
["Споживач має право відмовитися від договору про споживчий кредит протягом 14 календарних днів у порядку та на умовах, визначених Законом України \"Про споживче кредитування\".","Так"]
["Споживач має право достроково повернути споживчий кредит без будь-якої додаткової плати, пов'язаної з достроковим поверненням. Договором про споживчий кредит може бути встановлений обов'язок повідомлення кредитодавця про намір дострокового повернення споживчого кредиту з оформленням відповідного документа."]
["Умови договору про споживчий кредит можуть відрізнятися від інформації, наведеної в цьому Паспорті споживчого кредиту, та будуть залежати від проведеної кредитодавцем оцінки кредитоспроможності споживача з урахуванням, зокрема, наданої ним інформації про майновий та сімейний стан, розмір доходів тощо."]
["Дата надання інформації:","Ця інформація зберігає чинність та є актуальною до:"]
[]
["Підпис кредитодавця:","ПІБ _____________________________________________________\n\nПідпис _________________"]
[]
["Підтверджую отримання та ознайомлення з інформацією про умови кредитування та орієнтовну загальну вартість кредиту, надані виходячи із обраних мною умов кредитування."]
["Підтверджую отримання мною всіх пояснень, необхідних для забезпечення можливості оцінити, чи адаптовано договір до моїх потреб та фінансової ситуації, зокрема шляхом роз'яснення наведеної інформації, в тому числі суттєвих характеристик запропонованих послуг та певних наслідків, які вони можуть мати для мене, в тому числі в разі невиконання мною зобов'язань за таким договором."]
[]
["Підпис споживача:","Дата _____________\nПІБ _____________________________________________________\n\nПідпис _________________"]
["Підтверджую отримання мною інформації про право кредитодавця залучати до врегулювання простроченої заборгованості колекторську компанію у разі невиконання мною зобов'язань за договором про споживчий кредит, про встановлені законодавством вимоги щодо взаємодії із споживачами при врегулюванні простроченої заборгованості (вимоги щодо етичної поведінки), про моє право на звернення до Національного банку України у разі недотримання таких вимог кредитодавцем та/або колекторською компанією, а також про моє право на звернення до суду з позовом про відшкодування шкоди, завданої у процесі врегулювання простроченої заборгованості."]
["Підтверджую повідомлення мене про передбачену статтею 182 Кримінального кодексу України відповідальність за незаконне збирання, зберігання, використання, поширення мною конфіденційної інформації про третіх осіб, персональні дані яких передані мною кредитодавцю."]

{"sheet":"Додаток 21 \"Форма інформування\"","index":3,"n_rows":81,"n_cols":8,"rows_kept":81,"cut":false,"hidden":true,"merged":[[61,1,61,7],[26,5,27,5],[19,1,19,2],[19,3,19,4],[34,1,34,2],[20,3,20,4],[21,3,21,4],[20,1,21,2],[22,1,22,4],[47,3,47,7],[47,2,48,2],[48,3,48,7],[25,2,27,2],[25,3,25,4],[25,5,25,7],[26,3,27,3],[2,1,2,2],[3,1,3,2],[15,1,17,6],[24,1,24,6],[1,1,1,3],[1,5,1,6],[51,3,51,7],[52,3,52,7],[26,4,27,4],[26,7,27,7],[46,3,46,7],[30,1,30,3],[31,1,31,3],[32,1,32,2],[33,1,33,2],[30,5,31,7],[36,1,36,2],[59,1,59,7],[60,1,60,7],[63,1,63,7],[37,3,37,7],[38,3,38,7],[39,3,39,7],[40,3,40,7],[41,3,41,7],[42,3,42,7],[54,3,54,7],[55,3,55,7],[43,3,43,7],[44,3,44,7],[45,3,45,7],[53,3,53,7],[50,3,50,7],[0,0,0,7],[73,1,73,7],[64,1,64,2],[64,4,64,6],[65,3,65,6],[66,1,66,7],[72,1,72,7],[70,1,70,2],[67,1,67,7],[68,1,68,2],[68,4,68,6],[69,3,69,6],[71,1,71,7],[49,3,49,7],[56,3,56,7],[58,1,58,7]]}
["Інформація про умови кредитування та орієнтовну сукупну вартість кредиту"]
[null,"ПУБЛІЧНЕ АКЦІОНЕРНЕ ТОВАРИСТВО \"ТАСКОМБАНК\"  "]
[null,"Україна, 01032, м. Київ, вул. С. Петлюри, 30,"]
[null,"безкоштовний телефон: 0 (800) 503 580"]
[]
[null,null,"Розмір кредиту:"]
[null,null,"Вартість товару (послуги):",{"$f":"Калькулятор!O4","v":0},"грн."]
[null,null,"Сума на поточні потреби",{"$f":"Калькулятор!O7","v":0},"грн."]
[null,null,"Сума авансу:",{"$f":"Калькулятор!O8","v":0},"грн."]
[null,null,"Страховий платiж:",{"$f":"Калькулятор!O27","v":0},"грн."]
[null,null,"Оцінка предмету застави",{"$f":"Калькулятор!E17","v":60033.592242888291},"грн."]
[null,null,"Послуги нотаріуса",{"$f":"Калькулятор!E16","v":111033.59224288829},"грн."]
[null,null,"Плата за надання кредиту:",{"$f":"Калькулятор!I27*(-1)","v":0},"грн."]
[null,null,"Сума договору:",{"$f":"Калькулятор!E7","v":50000},"грн."]
[null,null,"Страхова сума:",{"$f":"Калькулятор!O9","v":0},"грн."]
[null,"Розмір кредиту визначається, як сума вартості товару (послуги) та сума на поточні потреби (за наявності) за мінусом авансового внеску клієнта"]
[]
[]
[]
[null,"Internet-banking ТАС 24",null,"             Сплачуйте кредитну заборгованість через Інтернет, а також"]
[null,"https://tas24.ua",null,"-             Поповнюйте депозити"]
[null,null,null,"-             Здійснюйте платежі"]
[null,"Реєстрація та надання послуг безкоштовні. Детальніше на сайті системи https://tas24.ua"]
[]
[null,"                     Таблиця орієнтовних щомісячних платежів та подорожчання*:"]
[null,"Строк кредиту","Щомісячний платіж, грн","Орієнтовна сукупна вартість кредиту,всього:",null,"в тому числi"]
[null,"(місяців)",null,"у %","у грн.","Сума плати за надання кредиту, грн.","Сума плати за користування кредитом","Сума плати за обслуговування кредитної заборгованості, грн."]
[null,null,null,null,null,null,"(процентів), грн."]
[null,{"$f":"Калькулятор!E8","v":60},{"$f":"(Калькулятор!D88+Калькулятор!I88+Калькулятор!O88+Калькулятор!P88+Калькулятор!#REF!)/'Додаток 21 \"Форма інформування\"'!B29","v":{"$error":"#REF!"}},{"$f":"Калькулятор!Q88","v":0.43392749428749089},{"$f":"Калькулятор!R88","v":111033.59224288829},{"$f":"D13","v":0},{"$f":"Калькулятор!F88","v":59033.592242888299},{"$f":"Калькулятор!G88+Калькулятор!#REF!+Калькулятор!J88+Калькулятор!O88+Калькулятор!P88+Калькулятор!#REF!","v":{"$error":"#REF!"}}]
[]
[null,"Переваги кредитування в рамках даного продукту:",null,null,null,"Вадами кредитування в рамках даного  продукту є подорожчання товару/послуги"]
[null,"·Оптимізація власного бюджету, за рахунок стабільних платежів"]
[null,"·Моментальне отримання товару"]
[null,"·Низька відсоткова ставка"]
[null,"·Зменшення переплати при достроковому погашенні."]
[]
[null,"Умови кредитування:"]
[null,null,"Назва кредитного продукту:",{"$f":"Калькулятор!#REF!","v":{"$error":"#REF!"}}]
[null,null,"Валюта кредиту:",{"$f":"IF($D$38=Продукты!$B$2,Продукты!B3,IF($D$38=Продукты!$C$2,Продукты!C3,IF($D$38=Продукты!$D$2,Продукты!D3,IF($D$38=Продукты!$E$2,Продукты!E3,IF($D$38=Продукты!$F$2,Продукты!F3,IF($D$38=Продукты!$G$2,Продукты!G3,IF($D$38=Продукты!$H$2,Продукты!H3,IF($D$38=Продукты!$I$2,Продукты!I3,IF($D$38=Продукты!K2,Продукты!K3,IF($D$38=Продукты!L2,Продукты!L3,Продукты!N3))))))))))","v":{"$error":"#REF!"}}]
[null,null,"Форма кредиту:",{"$f":"IF($D$38=Продукты!$B$2,Продукты!B4,IF($D$38=Продукты!$C$2,Продукты!C4,IF($D$38=Продукты!$D$2,Продукты!D4,IF($D$38=Продукты!$E$2,Продукты!E4,IF($D$38=Продукты!$F$2,Продукты!F4,IF($D$38=Продукты!$G$2,Продукты!G4,IF($D$38=Продукты!$H$2,Продукты!H4,IF($D$38=Продукты!$I$2,Продукты!I4,IF($D$38=Продукты!K2,Продукты!K4,IF($D$38=Продукты!L2,Продукты!L4,Продукты!N4))))))))))","v":{"$error":"#REF!"}}]
[null,null,"Мета кредиту:",{"$f":"IF($D$38=Продукты!$B$2,Продукты!B5,IF($D$38=Продукты!$C$2,Продукты!C5,IF($D$38=Продукты!$D$2,Продукты!D5,IF($D$38=Продукты!$E$2,Продукты!E5,IF($D$38=Продукты!$F$2,Продукты!F5,IF($D$38=Продукты!$G$2,Продукты!G5,IF($D$38=Продукты!$H$2,Продукты!H5,IF($D$38=Продукты!$I$2,Продукты!I5,IF($D$38=Продукты!K2,Продукты!K5,IF($D$38=Продукты!L2,Продукты!L5,Продукты!N5))))))))))","v":{"$error":"#REF!"}}]
[null,null,"Тип процентної ставки",{"$f":"IF($D$38=Продукты!$B$2,Продукты!B6,IF($D$38=Продукты!$C$2,Продукты!C6,IF($D$38=Продукты!$D$2,Продукты!D6,IF($D$38=Продукты!$E$2,Продукты!E6,IF($D$38=Продукты!$F$2,Продукты!F6,IF($D$38=Продукты!$G$2,Продукты!G6,IF($D$38=Продукты!$H$2,Продукты!H6,IF($D$38=Продукты!$I$2,Продукты!I6,IF($D$38=Продукты!K2,Продукты!K6,IF($D$38=Продукты!L2,Продукты!L6,Продукты!N6))))))))))","v":{"$error":"#REF!"}}]
[null,null,"Плата за користування кредитом (проценти):",{"$f":"IF($D$38=Продукты!$B$2,Продукты!B7,IF($D$38=Продукты!$C$2,Продукты!C7,IF($D$38=Продукты!$D$2,Продукты!D7,IF($D$38=Продукты!$E$2,Продукты!E7,IF($D$38=Продукты!$F$2,Продукты!F7,IF($D$38=Продукты!$G$2,Продукты!G7,IF($D$38=Продукты!$H$2,Продукты!H7,IF($D$38=Продукты!$I$2,Продукты!I7,IF($D$38=Продукты!K2,Продукты!K7,IF($D$38=Продукты!L2,Продукты!L7,Продукты!N7))))))))))","v":{"$error":"#REF!"}}]
[null,null,"Страховий тариф:",{"$f":"IF($D$38=Продукты!$B$2,Продукты!B8,IF($D$38=Продукты!$C$2,Продукты!C8,IF($D$38=Продукты!$D$2,Продукты!D8,IF($D$38=Продукты!$E$2,Продукты!E8,IF($D$38=Продукты!$F$2,Продукты!F8,IF($D$38=Продукты!$G$2,Продукты!G8,IF($D$38=Продукты!$H$2,Продукты!H8,IF($D$38=Продукты!$I$2,Продукты!I8,IF($D$38=Продукты!K2,Продукты!K8,IF($D$38=Продукты!L2,Продукты!L8,Продукты!N8))))))))))","v":{"$error":"#REF!"}}]
[null,null,"Cтроки фінансування:",{"$f":"IF($D$38=Продукты!$B$2,Продукты!B9,IF($D$38=Продукты!$C$2,Продукты!C9,IF($D$38=Продукты!$D$2,Продукты!D9,IF($D$38=Продукты!$E$2,Продукты!E9,IF($D$38=Продукты!$F$2,Продукты!F9,IF($D$38=Продукты!$G$2,Продукты!G9,IF($D$38=Продукты!$H$2,Продукты!H9,IF($D$38=Продукты!$I$2,Продукты!I9,IF($D$38=Продукты!K2,Продукты!K9,IF($D$38=Продукты!L2,Продукты!L9,Продукты!N9))))))))))","v":{"$error":"#REF!"}}]
[null,null,"Cуми кредитування:",{"$f":"IF($D$38=Продукты!$B$2,Продукты!B10,IF($D$38=Продукты!$C$2,Продукты!C10,IF($D$38=Продукты!$D$2,Продукты!D10,IF($D$38=Продукты!$E$2,Продукты!E10,IF($D$38=Продукты!$F$2,Продукты!F10,IF($D$38=Продукты!$G$2,Продукты!G10,IF($D$38=Продукты!$H$2,Продукты!H10,IF($D$38=Продукты!$I$2,Продукты!I10,IF($D$38=Продукты!K2,Продукты!K10,IF($D$38=Продукты!L2,Продукты!L10,Продукты!N10))))))))))","v":{"$error":"#REF!"}}]
[null,null,"Форма забезпечення:",{"$f":"IF($D$38=Продукты!$B$2,Продукты!B11,IF($D$38=Продукты!$C$2,Продукты!C11,IF($D$38=Продукты!$D$2,Продукты!D11,IF($D$38=Продукты!$E$2,Продукты!E11,IF($D$38=Продукты!$F$2,Продукты!F11,IF($D$38=Продукты!$G$2,Продукты!G11,IF($D$38=Продукты!$H$2,Продукты!H11,IF($D$38=Продукты!$I$2,Продукты!I11,IF($D$38=Продукты!K2,Продукты!K11,IF($D$38=Продукты!L2,Продукты!L11,Продукты!N11))))))))))","v":{"$error":"#REF!"}}]
[null,null,"Необхідність здійснення оцінки майна",{"$f":"IF($D$38=Продукты!$B$2,Продукты!B12,IF($D$38=Продукты!$C$2,Продукты!C12,IF($D$38=Продукты!$D$2,Продукты!D12,IF($D$38=Продукты!$E$2,Продукты!E12,IF($D$38=Продукты!$F$2,Продукты!F12,IF($D$38=Продукты!$G$2,Продукты!G12,IF($D$38=Продукты!$H$2,Продукты!H12,IF($D$38=Продукты!$I$2,Продукты!I12,IF($D$38=Продукты!K2,Продукты!K12,IF($D$38=Продукты!L2,Продукты!L12,Продукты!N12))))))))))","v":{"$error":"#REF!"}}]
[null,null,null,{"$f":"IF(D48=\"Заставна вартість нерухомості встановлюється на підставі проведеної незалежної оцінки незалежним оцінювачем \",Калькулятор!#REF!,\" \")","v":{"$error":"#REF!"}}]
[null,null,"Варіанти повернення (погашення) кредиту:"]
[null,null,"Форма (варіанти) погашення кредиту:",{"$f":"IF($D$38=Продукты!$B$2,Продукты!B14,IF($D$38=Продукты!$C$2,Продукты!C14,IF($D$38=Продукты!$D$2,Продукты!D14,IF($D$38=Продукты!$E$2,Продукты!E14,IF($D$38=Продукты!$F$2,Продукты!F14,IF($D$38=Продукты!$G$2,Продукты!G14,IF($D$38=Продукты!$H$2,Продукты!H14,IF($D$38=Продукты!$I$2,Продукты!I14,IF($D$38=Продукты!K2,Продукты!K14,IF($D$38=Продукты!L2,Продукты!L14,Продукты!N14))))))))))","v":{"$error":"#REF!"}}]
[null,null,"Дострокове погашення:",{"$f":"IF($D$38=Продукты!$B$2,Продукты!B15,IF($D$38=Продукты!$C$2,Продукты!C15,IF($D$38=Продукты!$D$2,Продукты!D15,IF($D$38=Продукты!$E$2,Продукты!E15,IF($D$38=Продукты!$F$2,Продукты!F15,IF($D$38=Продукты!$G$2,Продукты!G15,IF($D$38=Продукты!$H$2,Продукты!H15,IF($D$38=Продукты!$I$2,Продукты!I15,IF($D$38=Продукты!K2,Продукты!K15,IF($D$38=Продукты!L2,Продукты!L15,Продукты!N15))))))))))","v":{"$error":"#REF!"}}]
[null,null,"Остаточне погашення:",{"$f":"IF($D$38=Продукты!$B$2,Продукты!B16,IF($D$38=Продукты!$C$2,Продукты!C16,IF($D$38=Продукты!$D$2,Продукты!D16,IF($D$38=Продукты!$E$2,Продукты!E16,IF($D$38=Продукты!$F$2,Продукты!F16,IF($D$38=Продукты!$G$2,Продукты!G16,IF($D$38=Продукты!$H$2,Продукты!H16,IF($D$38=Продукты!$I$2,Продукты!I16,IF($D$38=Продукты!K2,Продукты!K16,IF($D$38=Продукты!L2,Продукты!L16,Продукты!N16))))))))))","v":{"$error":"#REF!"}}]
[null,null,"Податковий режим сплати процентів та державні субсидії",{"$f":"IF($D$38=Продукты!$B$2,Продукты!B17,IF($D$38=Продукты!$C$2,Продукты!C17,IF($D$38=Продукты!$D$2,Продукты!D17,IF($D$38=Продукты!$E$2,Продукты!E17,IF($D$38=Продукты!$F$2,Продукты!F17,IF($D$38=Продукты!$G$2,Продукты!G17,IF($D$38=Продукты!$H$2,Продукты!H17,IF($D$38=Продукты!$I$2,Продукты!I17,IF($D$38=Продукты!K2,Продукты!K17,IF($D$38=Продукты!L2,Продукты!L17,Продукты!N17))))))))))","v":{"$error":"#REF!"}}]
[null,null,"Супутні послуги:"]
[null,null,"Плата за обслуговування кредитної заборгованості:",{"$f":"IF($D$38=Продукты!$B$2,Продукты!B19,IF($D$38=Продукты!$C$2,Продукты!C19,IF($D$38=Продукты!$D$2,Продукты!D19,IF($D$38=Продукты!$E$2,Продукты!E19,IF($D$38=Продукты!$F$2,Продукты!F19,IF($D$38=Продукты!$G$2,Продукты!G19,IF($D$38=Продукты!$H$2,Продукты!H19,IF($D$38=Продукты!$I$2,Продукты!I19,IF($D$38=Продукты!K2,Продукты!K19,IF($D$38=Продукты!L2,Продукты!L19,Продукты!N19))))))))))","v":{"$error":"#REF!"}}]
[null,null,"Плата за надання кредиту:",{"$f":"IF($D$38=Продукты!$B$2,Продукты!B20,IF($D$38=Продукты!$C$2,Продукты!C20,IF($D$38=Продукты!$D$2,Продукты!D20,IF($D$38=Продукты!$E$2,Продукты!E20,IF($D$38=Продукты!$F$2,Продукты!F20,IF($D$38=Продукты!$G$2,Продукты!G20,IF($D$38=Продукты!$H$2,Продукты!H20,IF($D$38=Продукты!$I$2,Продукты!I20,IF($D$38=Продукты!K2,Продукты!K20,IF($D$38=Продукты!L2,Продукты!L20,Продукты!N20))))))))))","v":{"$error":"#REF!"}}]
[]
[null,"Обов'язкові документи:"]
[null,"1. Паспорт громадянина України"]
[null,"2. Довідка про присвоєння ідентифікаційного номера платника податків (картка платника податків)"]
[null,"В окремих випадках Банк залишає за собою право вимагати інші документи, необхідні для визначення платоспроможності позичальника та які є необхідними для надання споживчого кредиту. "]
[]
[null,"З підписанням цієї Інформації (довідки) про кредит позичальник засвідчує, що перед укладанням Кредитного договору він ознайомлений з інформацією про  умови кредитування, а також повідомлений про орієнтовну сукупну вартість кредиту і ці умови є зрозумілими"]
[null,"_________________________________",null,null,"______________________"]
[null,null,"Позичальник","Уповноважена особа АТ \"ТАСКОМБАНК\""]
[null,"Ця Інформація (довідка) про кредит у разі укладання Кредитного договору №____________________ від______________20___р.** вважається (і) його невід’ємною частиною та (іі) детальним розписом сукупної вартості кредиту з урахуванням процентної ставки за ним, "]
[null,"п.3.1. та 3.4. Постанови Правління Національного банку України від 10.05.07р. №168 «Про затвердження Правил надання банками України інформації споживачу про умови кредитування та сукупну вартість кредиту»."]
[null,"_________________________________",null,null,"______________________"]
[null,null,"Позичальник","Уповноважена особа АТ \"ТАСКОМБАНК\""]
[null,"_ _ _ _ _ _ _ _ _ _ _ _ _ _ _"]
[null,"*Таблиця орієнтованих щомісячних платежів та подорожчання відображає суму щомісячного погашення кредиту в залежності від вибраного Вами строку кредитування. Таблиця НЕ Є графіком погашення. Графік погашення та чітка сума щомісячного платежу зазначені у Кредитному договорі"]
[null,"**У разі фактичного укладання Кредитного договору його номер та дата вписується уповноваженою особою АТ \"ТАСКОМБАНК\", на підтвердження чого Позичальник та уповноважена особа АТ \"ТАСКОМБАНК\" ставлять нижче свої підписи. "]
[null,"Один екземпляр Інформації про умови кредитування та орієнтовну сукупну вартість кредиту отримав(ла)."]
[]
[null,"_______________________",null,"____________________",null,"________________________"]
[null,"дата",null,"підпис",null,"ініціали та прізвище фізичної особи"]
[]
[]
[null,"_______________________",null,"____________________",null,"________________________"]
[null,"дата",null,"підпис",null,"ініціали та прізвище виконавця"]

{"sheet":"Продукты","index":4,"n_rows":23,"n_cols":14,"rows_kept":23,"cut":false,"hidden":true,"merged":[]}
[]
["Назва кредитного продукту","Кредит «Вперед к мечте»","Кредит на покупку недвижимости","Кредит под залог недвижимости","Кредит под депозит","Кредит на купівлю автомобіля, що був у використанні","Овердрафт для держателей зарплатных карт","Кредитная карта VIP","Овердрафт GOLD","Кредит на навчання","Кеш-кредит \"Зручна готівка\" із послугою страхування","Лізинг нерухомості","Кредит \"Легкий\"","Кредит \"Автосалон\""]
["Валюта кредиту","Гривня","Гривня","Гривня","Гривня/Долар США/Євро, відповідає валюті депозиту","Гривня","Гривня","Гривня","Гривня","Гривня","Гривня","Гривня","Гривня","Гривня"]
["Форма кредиту","Строковий кредит.\nСтроковий кредит - сума грошових коштів, що одноразово надається позичальнику на принципах безумовного повернення, строковості, платності, цільової спрямованості та забезпеченості.\nВиконання зобов’язання за кредитним договором, а саме повернення кредиту, сплата процентів та щомісячних комісій (в разі наявності) здійснюється таким чином:\n- проценти сплачуються щомісячно;\n- основний борг повертається щомісячно рівними частинами або ануїтетними платежами.","Строковий кредит.\nСтроковий кредит - сума грошових коштів, що одноразово надається позичальнику на принципах безумовного повернення, строковості, платності, цільової спрямованості та забезпеченості.\nВиконання зобов’язання за кредитним договором, а саме повернення кредиту, сплата процентів та щомісячних комісій (в разі наявності) здійснюється таким чином:\n- проценти сплачуються щомісячно;\n- основний борг повертається щомісячно рівними частинами або ануїтетними платежами.","Строковий кредит/кредитна лінія\nСтроковий кредит - сума грошових коштів, що одноразово надається позичальнику на принципах безумовного повернення, строковості, платності, цільової спрямованості та забезпеченості.\nКредитна лінія – кредитна угода, відповідно до якої протягом передбаченого договором терміну банк виділяє позичальнику кредит у межах узгодженої суми (ліміту кредитування) на умовах, що відрізняються від умов одноразового надання кредиту.","Строковий кредит/кредитна лінія\nСтроковий кредит - сума грошових коштів, що одноразово надається позичальнику на принципах безумовного повернення, строковості, платності, цільової спрямованості та забезпеченості.\nКредитна лінія – кредитна угода, відповідно до якої протягом передбаченого договором терміну банк виділяє позичальнику кредит у межах узгодженої суми (ліміту кредитування) на умовах, що відрізняються від умов одноразового надання кредиту.","Строковий кредит.\nСтроковий кредит - сума грошових коштів, що одноразово надається позичальнику на принципах безумовного повернення, строковості, платності, цільової спрямованості та забезпеченості.\nВиконання зобов’язання за кредитним договором, а саме повернення кредиту, сплата процентів та щомісячних комісій (в разі наявності) здійснюється таким чином:\n- проценти сплачуються щомісячно;\n- основний борг повертається щомісячно рівними частинами або ануїтетними платежами.","Кредит у формі овердрафту","Кредит у формі овердрафту","Кредит у формі овердрафту","Картковий кредит","Кредит готівкою","Лізинг \nЛізинг — підприємницька діяльність, спрямована на інвестування власних чи залучених фінансових коштів, яка полягає в наданні лізингодавцем у виключне користування на визначений строк лізингоодержувачу майна.","Строковий кредит.\nСтроковий кредит - сума грошових коштів, що одноразово надається позичальнику на принципах безумовного повернення, строковості, платності, цільової спрямованості та забезпеченості.\nВиконання зобов’язання за кредитним договором, а саме повернення кредиту, сплата процентів та щомісячних комісій (в разі наявності) здійснюється таким чином:\n- проценти сплачуються щомісячно;\n- основний борг повертається щомісячно рівними частинами або ануїтетними платежами.","Строковий кредит.\nСтроковий кредит - сума грошових коштів, що одноразово надається позичальнику на принципах безумовного повернення, строковості, платності, цільової спрямованості та забезпеченості.\nВиконання зобов’язання за кредитним договором, а саме повернення кредиту, сплата процентів та щомісячних комісій (в разі наявності) здійснюється таким чином:\n- проценти сплачуються щомісячно;\n- основний борг повертається щомісячно рівними частинами або ануїтетними платежами."]
["Мета кредиту","Кредит надається на купівлю нерухомості на вторинному ринку","Кредит надається на купівлю нерухомості","Кредит надається на купівлю нерухомості","Кредит надається безготівково на оплату товарів чи послуг та оплату супутніх послуг, які пов’язані з отриманням, обслуговуванням і погашенням кредиту.","Кредит надається безготівково на оплату товарів чи послуг та оплату супутніх послуг, які пов’язані з отриманням, обслуговуванням і погашенням кредиту.","Кредит надається безготівково на оплату товарів чи послуг та оплату супутніх послуг, які пов’язані з отриманням, обслуговуванням і погашенням кредиту.","Кредит надається безготівково на оплату товарів чи послуг та оплату супутніх послуг, які пов’язані з отриманням, обслуговуванням і погашенням кредиту.","Кредит надається безготівково на оплату товарів чи послуг та оплату супутніх послуг, які пов’язані з отриманням, обслуговуванням і погашенням кредиту.","Кредит надається безготівково на оплату товарів чи послуг та оплату супутніх послуг, які пов’язані з отриманням, обслуговуванням і погашенням кредиту.","Споживчі потреби","Фінансування надається безготівково на оплату товарів чи послуг та оплату супутніх послуг, які пов’язані з отриманням, обслуговуванням і погашенням фінансування.","Кредит надається безготівково на оплату товарів чи послуг та оплату супутніх послуг, які пов’язані з отриманням, обслуговуванням і погашенням кредиту.","Кредит надається безготівково на оплату товарів чи послуг та оплату супутніх послуг, які пов’язані з отриманням, обслуговуванням і погашенням кредиту."]
["Тип процентної ставки","Фіксована","Фіксована","Фіксована","Фіксована","Фіксована","Фіксована","Фіксована","Фіксована","Фіксована","Фіксована","Фіксована","Фіксована","Фіксована"]
["Плата за користування кредитом","Від 14% річних","24% річних - ануїтетна схема погашення; 24% - стандартна схема погашення","24% річних - ануїтетна схема погашення; 24% - стандартна схема погашення","Ставка по депозиту + 2,7%","Від 19,9%","36% річних","0,001% річних","35% річних","36% річних","19,99% річних","24% річних","Від 19,9%","Від 0,001%"]
["Страховий тариф","3% від залишку заборгованості по кредиту щорічно","0,5% - страхування життя, 0,3% - страхування предмету застави","0,5% - страхування життя, 0,3% - страхування предмету застави","-","2,99% - страхування життя, від 5,99% - страхування КАСКО, від 400 грн. - страхування ОСАГО","-","-","-","-","6% на рік, оплачується при оформленні кредиту одразу на весь строк кредиту шляхом перерахування на рахунок страхової компанії з Позичковго рахунку","1% - страхування життя, 0,3% - страхування предмету лізингу","2,99% - страхування життя, від 6,0% - страхування КАСКО, від 400 грн. - страхування ОСАГО","2,99% - страхування життя, від 6,0% - страхування КАСКО, від 400 грн. - страхування ОСАГО"]
["Строки кредитування","від 12 до 60 місяців","До 10 років","До 10 років","Строк депозиту - 32 дні","Від 3 міс. до 84 міс.","12 місяців","12 місяців","12 місяців","5 місяців","12/24/36 місяців","До 10 років","Від 3 міс. до 84 міс.","Від 3 міс. до 84 міс."]
["Суми кредитування","від 100 до 400 тис. грн.","Від 25 тис. до 2 млн. грн.","Від 25 тис. до 2 млн. грн., але не більше 50% вартості житла, яке надається в заставу",null,"Від 50 тис. до 800 тис. грн.","Від 500 грн. до 15 тис. грн. (але не більше 50% заробітної платні)","До 500 тис. грн.","До 50 тис. грн.","До 20 тис. грн.","Від 2 000 до 50 000 грн. з врахуванням суми страхового платежу","Від 25 тис. до 2 млн. грн.","Від 50 тис. до 800 тис. грн.","Від 50 тис. до 800 тис. грн."]
["Форма забезпечення","Застава автомобіля","Придбана нерухомість, порука фізичної (их) особи (осіб) ","Нерухоме майно, порука фізичної (их) особи (осіб)","Майнові права на депозит","Застава автомобіля","Забезпечення відсутнє","Забезпечення відсутнє","Забезпечення відсутнє","Забезпечення відсутнє","Забезпечення відсутнє","Придбана нерухомість","Застава автомобіля","Застава автомобіля"]
["Необхідність здійснення оцінки майна","Необхідність оцінки майна відсутня","Присутня необхідність проведення оцінки майна за рахунок клієнта у випадку передачі в іпотеку домоволодіння та/або земельної ділянки","Присутня необхідність проведення оцінки майна за рахунок клієнта у випадку передачі в іпотеку домоволодіння та/або земельної ділянки","Необхідність оцінки майна відсутня","Присутня необхідність проведення оцінки майна за рахунок клієнта","Необхідність оцінки майна відсутня","Необхідність оцінки майна відсутня","Необхідність оцінки майна відсутня","Необхідність оцінки майна відсутня","Необхідність оцінки майна відсутня","Присутня необхідність проведення оцінки майна за рахунок клієнта","Необхідність оцінки майна відсутня","Необхідність оцінки майна відсутня"]
["Варіанти повернення кредиту:"]
["Форма погашення кредиту","Щомісячно рівними (аннуїтетними) платежами.\nПереваги ануїтетних платежів: повернення кредиту рівними платежами протягом всього строку кредитування. Зручність для позичальників з незмінною щомісячною сумою доходів. Щомісячний платіж меньший в порівнянні з поверненням кредитних коштів рівними частинами.\nНедоліки ануїтетних платежів: сума нарахованих процентів за весь строк користування кредитними коштами буде більше, ніж при поверненні кредиту рівними частинами.","Класична форма погашення/щомісячно рівними (ануїтетними) платежами.\nПереваги класичної форми погашення: сума нарахованих процентів зменьшується значно швидше, ніж при ануїтетному платежі.\nНедоліки класичної форми погашення: на початк користування кредитними коштами сума щомісячного платежу буде більшою, ніж при поверненні ануїтетними платежами.\nПереваги ануїтетних платежів: повернення кредиту рівними платежами протягом всього строку кредитування. Зручність для позичальників з незмінною щомісячною сумою доходів. Щомісячний платіж меньший в порівнянні з поверненням кредитних коштів рівними частинами.\nНедоліки ануїтетних платежів: сума нарахованих процентів за весь строк користування кредитними коштами буде більше, ніж при поверненні кредиту рівними частинами.","Класична форма погашення/щомісячно рівними (ануїтетними) платежами.\nПереваги класичної форми погашення: сума нарахованих процентів зменьшується значно швидше, ніж при ануїтетному платежі.\nНедоліки класичної форми погашення: на початк користування кредитними коштами сума щомісячного платежу буде більшою, ніж при поверненні ануїтетними платежами.\nПереваги ануїтетних платежів: повернення кредиту рівними платежами протягом всього строку кредитування. Зручність для позичальників з незмінною щомісячною сумою доходів. Щомісячний платіж меньший в порівнянні з поверненням кредитних коштів рівними частинами.\nНедоліки ануїтетних платежів: сума нарахованих процентів за весь строк користування кредитними коштами буде більше, ніж при поверненні кредиту рівними частинами.","Класична форма погашення/щомісячно рівними (ануїтетними) платежами.\nПереваги класичної форми погашення: сума нарахованих процентів зменьшується значно швидше, ніж при ануїтетному платежі.\nНедоліки класичної форми погашення: на початк користування кредитними коштами сума щомісячного платежу буде більшою, ніж при поверненні ануїтетними платежами.\nПереваги ануїтетних платежів: повернення кредиту рівними платежами протягом всього строку кредитування. Зручність для позичальників з незмінною щомісячною сумою доходів. Щомісячний платіж меньший в порівнянні з поверненням кредитних коштів рівними частинами.\nНедоліки ануїтетних платежів: сума нарахованих процентів за весь строк користування кредитними коштами буде більше, ніж при поверненні кредиту рівними частинами.","Класична форма погашення/щомісячно рівними (ануїтетними) платежами.\nПереваги класичної форми погашення: сума нарахованих процентів зменьшується значно швидше, ніж при ануїтетному платежі.\nНедоліки класичної форми погашення: на початк користування кредитними коштами сума щомісячного платежу буде більшою, ніж при поверненні ануїтетними платежами.\nПереваги ануїтетних платежів: повернення кредиту рівними платежами протягом всього строку кредитування. Зручність для позичальників з незмінною щомісячною сумою доходів. Щомісячний платіж меньший в порівнянні з поверненням кредитних коштів рівними частинами.\nНедоліки ануїтетних платежів: сума нарахованих процентів за весь строк користування кредитними коштами буде більше, ніж при поверненні кредиту рівними частинами.","Щомісячний обов'язковий платіж","Щомісячний обов'язковий платіж","Щомісячний обов'язковий платіж","Щомісячний обов'язковий платіж","Щомісячний обов'язковий платіж (ануїтетний)","Класична форма погашення/щомісячно рівними (ануїтетними) платежами.\nПереваги класичної форми погашення: сума нарахованих процентів зменьшується значно швидше, ніж при ануїтетному платежі.\nНедоліки класичної форми погашення: на початк користування кредитними коштами сума щомісячного платежу буде більшою, ніж при поверненні ануїтетними платежами.\nПереваги ануїтетних платежів: повернення кредиту рівними платежами протягом всього строку кредитування. Зручність для позичальників з незмінною щомісячною сумою доходів. Щомісячний платіж меньший в порівнянні з поверненням кредитних коштів рівними частинами.\nНедоліки ануїтетних платежів: сума нарахованих процентів за весь строк користування кредитними коштами буде більше, ніж при поверненні кредиту рівними частинами.","Класична форма погашення/щомісячно рівними (ануїтетними) платежами.\nПереваги класичної форми погашення: сума нарахованих процентів зменьшується значно швидше, ніж при ануїтетному платежі.\nНедоліки класичної форми погашення: на початк користування кредитними коштами сума щомісячного платежу буде більшою, ніж при поверненні ануїтетними платежами.\nПереваги ануїтетних платежів: повернення кредиту рівними платежами протягом всього строку кредитування. Зручність для позичальників з незмінною щомісячною сумою доходів. Щомісячний платіж меньший в порівнянні з поверненням кредитних коштів рівними частинами.\nНедоліки ануїтетних платежів: сума нарахованих процентів за весь строк користування кредитними коштами буде більше, ніж при поверненні кредиту рівними частинами.","Класична форма погашення/щомісячно рівними (ануїтетними) платежами.\nПереваги класичної форми погашення: сума нарахованих процентів зменьшується значно швидше, ніж при ануїтетному платежі.\nНедоліки класичної форми погашення: на початк користування кредитними коштами сума щомісячного платежу буде більшою, ніж при поверненні ануїтетними платежами.\nПереваги ануїтетних платежів: повернення кредиту рівними платежами протягом всього строку кредитування. Зручність для позичальників з незмінною щомісячною сумою доходів. Щомісячний платіж меньший в порівнянні з поверненням кредитних коштів рівними частинами.\nНедоліки ануїтетних платежів: сума нарахованих процентів за весь строк користування кредитними коштами буде більше, ніж при поверненні кредиту рівними частинами."]
["Дострокове погашення","Можливе часткове або повне дострокове погашення кредиту на умовах відсутності штрафних санкцій за вчинення таких дій позичальником.","Можливе часткове або повне дострокове погашення кредиту на умовах відсутності штрафних санкцій за вчинення таких дій позичальником","Можливе часткове або повне дострокове погашення кредиту на умовах відсутності штрафних санкцій за вчинення таких дій позичальником","Можливе часткове або повне дострокове погашення кредиту на умовах відсутності штрафних санкцій за вчинення таких дій позичальником","Можливе часткове або повне дострокове погашення кредиту на умовах відсутності штрафних санкцій за вчинення таких дій позичальником","Можливе часткове або повне дострокове погашення кредиту на умовах відсутності штрафних санкцій за вчинення таких дій позичальником","Можливе часткове або повне дострокове погашення кредиту на умовах відсутності штрафних санкцій за вчинення таких дій позичальником","Можливе часткове або повне дострокове погашення кредиту на умовах відсутності штрафних санкцій за вчинення таких дій позичальником","Можливе часткове або повне дострокове погашення кредиту на умовах відсутності штрафних санкцій за вчинення таких дій позичальником","Можливе часткове або повне дострокове погашення кредиту на умовах відсутності штрафних санкцій за вчинення таких дій позичальником","Можливе часткове або повне дострокове погашення кредиту на умовах відсутності штрафних санкцій за вчинення таких дій лізингоодержувача","Можливе часткове або повне дострокове погашення кредиту на умовах відсутності штрафних санкцій за вчинення таких дій позичальником","Можливе часткове або повне дострокове погашення кредиту на умовах відсутності штрафних санкцій за вчинення таких дій позичальником"]
["Остаточне погашення","В кінці строку, вказаного в Кредитному договорі","В кінці строку, вказаного в Кредитному договорі","В кінці строку, вказаного в Кредитному договорі","В кінці строку, вказаного в Кредитному договорі","В кінці строку, вказаного в Кредитному договорі","В кінці строку, вказаного в Кредитному договорі","В кінці строку, вказаного в Кредитному договорі","В кінці строку, вказаного в Кредитному договорі","В кінці строку, вказаного в Кредитному договорі","В кінці строку, вказаного в Кредитному договорі в Графіку платежів","В кінці строку, вказаного в Договорі лізингу","В кінці строку, вказаного в Кредитному договорі","В кінці строку, вказаного в Кредитному договорі"]
["Податковий режим сплати процентів та державні субсидії","По даному кредитному продукту податкові знижки відсутні, державні субсидії не передбачені","По даному кредитному продукту податкові знижки відсутні, державні субсидії не передбачені","По даному кредитному продукту податкові знижки відсутні, державні субсидії не передбачені","По даному кредитному продукту податкові знижки відсутні, державні субсидії не передбачені","По даному кредитному продукту податкові знижки відсутні, державні субсидії не передбачені","По даному кредитному продукту податкові знижки відсутні, державні субсидії не передбачені","По даному кредитному продукту податкові знижки відсутні, державні субсидії не передбачені","По даному кредитному продукту податкові знижки відсутні, державні субсидії не передбачені","По даному кредитному продукту податкові знижки відсутні, державні субсидії не передбачені","По даному кредитному продукту податкові знижки відсутні, державні субсидії не передбачені","По даному кредитному продукту податкові знижки відсутні, державні субсидії не передбачені","По даному кредитному продукту податкові знижки відсутні, державні субсидії не передбачені","По даному кредитному продукту податкові знижки відсутні, державні субсидії не передбачені"]
["Супутні послуги:"]
["Плата за обслуговування кредитної заборгованості","Комісія відсутня","Комісія відсутня","Комісія відсутня","Комісія відсутня","Комісія відсутня","Комісія відсутня","3% від суми заборгованості на кінець місяця","Комісія відсутня","Комісія відсутня","2,95% від суми кредиту","Комісія відсутня","Комісія відсутня","1,4% від суми кредиту"]
["Плата за надання кредиту","3% від суми кредиту","1,5% від суми кредиту","від 1,5% від суми кредиту","0,5% від суми кредиту","від 0 до 2% від суми кредиту","Від 20 грн. до 300 грн. в залежності від суми кредитного ліміту","Комісія відсутня","Комісія відсутня","Комісія відсутня","Комісія відсутня","Не меньше 1,7% від суми фінансування","від 0 до 2% від суми кредиту","від 0 до 2% від суми кредиту"]
["послуги нотаріуса","Так","Так","Так","Ні","Так",null,null,null,null,null,"Так","Так","Так"]
["послуги оцінювача","Ні","Так\nЧП \"Актив Плюс\", ВАТ \"АКО-Експерт\", ПП \"Вітал-Профі\", ВАТ \"Кредитне Брокерське Агенство\", ВАТ \"Вектор оцінки\"","Так\nЧП \"Актив Плюс\", ВАТ \"АКО-Експерт\", ПП \"Вітал-Профі\", ВАТ \"Кредитне Брокерське Агенство\", ВАТ \"Вектор оцінки\"","Ні","Так\nЧП \"Актив Плюс\", ВАТ \"АКО-Експерт\", ПП \"Вітал-Профі\", ВАТ \"Кредитне Брокерське Агенство\", ВАТ \"Вектор оцінки\"","Ні","Ні","Ні","Ні","Ні","Так\nЧП \"Актив Плюс\", ВАТ \"АКО-Експерт\", ПП \"Вітал-Профі\", ВАТ \"Кредитне Брокерське Агенство\", ВАТ \"Вектор оцінки\"","Ні","Ні"]
["штрафи","Штраф – встановлюється в твердо визначеній грошовій сумі або у процентах від суми невиконаного або неналежного виконаного зобов’язання  і стягується одноразово. \nУ випадку надання завідомо недостовірної інформації, яка стосується умов цього Кредитного договору та/або процесу його виконання, Банк має право нарахувати та стягнути, а Позичальник сплачує Банку штраф у розмірі 5,0 % від суми кредиту.\nУ разі ненадання інформації, щодо фінансового та майнового стану, Банк має право нарахувати та стягнути, а Позичальник сплачує Банку штраф у розмірі 5,0 % від суми наданого кредиту. У разі невиконання умов щодо страхування життя та/або об’єкту застави процентна ставка збільшується на 10%."," - 5% від суми кредиту  за надання Позичальником завідомо недостовірної інформації, яка стосується умов  Кредитного договору та/або процесу його виконання.                                                                                                                                                - 5% від суми кредиту  за від суми наданого Кредиту за ненадання Позичальником інформації щодо його фінансового та майнового стану, а також, інформації, що стосується судових справ, стороною яких є Позичальник.                                                                                                           - 5% від суми кредиту за ненадання  Позичальником інформації та документів щодо зміни  його фінансового та майнового стану та не перешкоджати реалізації права Кредитора щодо проведення перевірки документально і в натурі наявності, стану і умов збереження та користування нерухомим майном, яке є забезпеченням по Кредиту.   "," - 5% від суми кредиту  за надання Позичальником завідомо недостовірної інформації, яка стосується умов  Кредитного договору та/або процесу його виконання.                                                                                                                                                - 5% від суми кредиту  за ненадання Позичальником інформації відносно зміни паспортних даних, місця роботи, контактних номерів телефонів, зміни у складі сім\"ї, а  також, інформації, що стосується судових спарав, стороною яких є Позичальник.                                                                                                           - 5% від суми кредиту за ненадання  Позичальником інформації та документів щодо зміни  його фінансового та майнового стану та не перешкоджати реалізації права Кредитора щодо проведення перевірки документально і в натурі наявності, стану і умов збереження та користування нерухомим майном, яке є забезпеченням по Кредиту.   ","Штраф – встановлюється в твердо визначеній грошовій сумі або у процентах від суми невиконаного або неналежного виконаного зобов’язання  і стягується одноразово.\nУ випадку надання завідомо недостовірної інформації, яка стосується умов Кредитного договору та/або процесу його виконання, Банк має право нарахувати та стягнути, а Позичальник сплачує Банку штраф у розмірі 5,0 % від суми кредиту.","Штраф – встановлюється в твердо визначеній грошовій сумі або у процентах від суми невиконаного або неналежного виконаного зобов’язання  і стягується одноразово. \nУ випадку надання завідомо недостовірної інформації, яка стосується умов цього Кредитного договору та/або процесу його виконання, Банк має право нарахувати та стягнути, а Позичальник сплачує Банку штраф у розмірі 5,0 % від суми кредиту.\nУ разі ненадання інформації, щодо фінансового та майнового стану, Банк має право нарахувати та стягнути, а Позичальник сплачує Банку штраф у розмірі 5,0 % від суми наданого кредиту. У разі невиконання умов щодо страхування життя та/або об’єкту застави процентна ставка збільшується на 10%.",null,null,null,null,null,"Штраф – встановлюється в твердо визначеній грошовій сумі або у процентах від суми невиконаного або неналежного виконаного зобов’язання  і стягується одноразово.\nУ випадку надання завідомо недостовірної інформації, яка стосується умов Кредитного договору та/або процесу його виконання, Банк має право нарахувати та стягнути, а Позичальник сплачує Банку штраф у розмірі 5,0 % (п’ять відсотків) від суми кредиту.\nУ разі ненадання інформації,  щодо фінансового та майнового стану, інформацію, що стосується судових справ, зміни своїх персональних даних, Позичальник зобов'язаний сплатити штраф у розмірі 1,0 % (одного відсотка) від суми наданого кредиту, вказаної у п. 2.1. Кредитного договору.\nУ разі невиконання умов щодо страхування життя та/або об’єкту застави процентна ставка збільшується на 10%.","Штраф – встановлюється в твердо визначеній грошовій сумі або у процентах від суми невиконаного або неналежного виконаного зобов’язання  і стягується одноразово. \nУ випадку надання завідомо недостовірної інформації, яка стосується умов цього Кредитного договору та/або процесу його виконання, Банк має право нарахувати та стягнути, а Позичальник сплачує Банку штраф у розмірі 5,0 % від суми кредиту.\nУ разі ненадання інформації, щодо фінансового та майнового стану, Банк має право нарахувати та стягнути, а Позичальник сплачує Банку штраф у розмірі 5,0 % від суми наданого кредиту. У разі невиконання умов щодо страхування життя та/або об’єкту застави процентна ставка збільшується на 10%.","Штраф – встановлюється в твердо визначеній грошовій сумі або у процентах від суми невиконаного або неналежного виконаного зобов’язання  і стягується одноразово. \nУ випадку надання завідомо недостовірної інформації, яка стосується умов цього Кредитного договору та/або процесу його виконання, Банк має право нарахувати та стягнути, а Позичальник сплачує Банку штраф у розмірі 5,0 % від суми кредиту.\nУ разі ненадання інформації, щодо фінансового та майнового стану, Банк має право нарахувати та стягнути, а Позичальник сплачує Банку штраф у розмірі 5,0 % від суми наданого кредиту. У разі невиконання умов щодо страхування життя та/або об’єкту застави процентна ставка збільшується на 10%."]

{"sheet":"Калькулятор Сайт","index":5,"n_rows":38,"n_cols":7,"rows_kept":38,"cut":false,"hidden":true,"merged":[[20,5,20,6]]}
[]
[null,"розраховується на підставі калькулятора"]
[null,"для самостійного заповнення на сайті клієнтом"]
[null,"фіксовані значення відповідно умов програми з наданого калькулятора та паспорту кредиту"]
[]
[null,"Калькулятор \"Кредит на купівлю  нерухомості \" Програма 1"]
[]
[null,null,null,null,"РОЗРАХУНОК КРЕДИТУ"]
["Вартість нерухомості:"]
[null,null,null,null,"Сума кредиту ",null,"(розрахункова)"]
["Строк   кредиту:",null,"(Випадаючий список) (12,24,….120) -до 10 років",null,"щомісячний платіж ***"]
[]
["Аванс % від ватрості нерухомості",null,"(Випадаючий список) (50,60,70)- мінімальний 37,5%",null,"реальна річна  % ставка",null,"стовб. 17 Усього"]
[]
["Схема погашения",null,"Ануїтетна / Класична",null,"Загальні витрати за кредитом, грн.",null,"сума стовб. 6-16"]
[]
["Процентна ставка по договору % річних",null,"Фіксована (24,0% )",null,"Загальна вартість кредиту****, грн. ",null,"стовб. 18 Усього"]
[]
["Одноразова комісія % від суми кредиту ",null,"Фіксована 1,5%"]
[]
["Щомісячна комісія % від початкової суми кредиту",null,"             Відсутня",null,null,"ОФОРМИТИ ЗАЯВКУ"]
[]
["Платежі за послуги третіх осіб",null,"Всього за весь строк кредиту (сума стовб.13, 14 та 15)"]
[]
["Послуги нотаріуса",null,"Одноразово (фіксована сума)* (усього стовб 13)"]
[]
["Послуги оцінювача",null,"Одноразово (фіксована сума)* (усього стовб 14)"]
[]
["Послуги страховика",null,"За весть строк кредиту ** (усього стовб 15)"]
[]
[]
["* До розрахунку прийнята середня  вартість нотаріальної послуги  та послуги оцінювача (виключно в разі оцінки домоволодіння із земельною ділянкою) у м. Києві "]
[]
["** До розрахунку прийняті середні страхові тарифи, що застосовуються при страхуванні нерухомого майна та життя позичальника від НВ в акредитованих компаніях - партнерах банку "]
[]
["*** однакова сума на весь строк кредиту для ануітетної схеми погашення та сума платежу  зі щомісячним зменшенням  для класичної схеми погашення"]
[]
["****до загальної вартості кредиту включені   платежі  за весь строк користування кредитом (у т.ч. тіло кредиту, відсотки, комісії та платежі за послуги третіх осіб )"]

{"sheet":"Лист2","index":6,"n_rows":0,"n_cols":0,"rows_kept":0,"cut":false,"hidden":true,"merged":[]}

{"sheet":"Лист3","index":7,"n_rows":0,"n_cols":0,"rows_kept":0,"cut":false,"hidden":true,"merged":[]}